[Event "FRA-ch Teams Top 16-Bas 2022"]
[Site "Chartres"]
[Date "2022.06.18"]
[Round "10.14"]
[White "Marcelin, Cyril"]
[Black "Cantin, Loic"]
[Result "1-0"]
[ECO "A48"]
[WhiteElo "2440"]
[BlackElo "2199"]
[Annotator "TA"]
[PlyCount "81"]
[EventDate "2022.06.16"]
[EventType "team-tourn"]
[EventCountry "FRA"]
[SourceTitle "playchess.com"]
[Source "ChessBase"]
[SourceQuality "1"]
[TimeControl "40/5400+30:1800+30"]

{[%evp 12,81,15,11,34,11,39,39,68,66,60,56,60,54,75,44,51,51,80,76,78,79,84,15,130,113,112,89,127,127,123,127,126,122,124,125,227,239,364,377,456,420,606,607,653,587,550,573,754,754,754,743,1212,1191,1189,1125,1322,1297,1466,918,1162,727,1080,800,29991,29988,29992,29993,29999,29991,29995,29996]} 1. d4 {[%emt 0:00:12]} Nf6 {[%emt 0:00:14]} 2. Nf3 {[%emt 0:00:32]} g6 {[%emt 0:00:15]} 3. Nbd2 {[%emt 0:00:15]} d5 {[%emt 0:00:35]} 4. c4 {[%emt 0:00:12]} c6 {[%emt 0:04:25]} 5. e3 {[%emt 0:00:55]} Bg7 {[%emt 0:01:58]} 6. b4 {[%emt 0:04:41]} O-O {[%emt 0:11:20]} 7. Bb2 {[%emt 0:08:13]} Ne4 {[%emt 0:25:02] A48: 1 d4 Nf6 2 Nf3 g6: Torre, London and Colle Systems.} 8. Be2 {[%emt 0:19:09]} f5 {[%emt 0:16:27]} 9. O-O {[%emt 0:03:49]} Kh8 {[%emt 0:06:40] [#] White is slightly better.} 10. Rc1 $146 {[%emt 0:09:11]} ({Predecessor:} 10. cxd5 cxd5 11. b5 Be6 12. a4 Nd7 13. a5 Ndf6 14. a6 b6 15. Ne5 Nxd2 16. Qxd2 {1-0 (35) Thavandiran,S (2264)-Henry,L (2090) Toronto 2006}) 10... Be6 {[%emt 0:01:05]} 11. a4 {[%emt 0:07:36]} Nd7 {[%emt 0:02:08]} 12. Qc2 {[%emt 0:08:12]} Bh6 {[%emt 0:02:43]} 13. cxd5 {[%emt 0:07:22]} Bxd5 {[%emt 0:01:51]} 14. Nxe4 {[%emt 0:04:39]} fxe4 {[%emt 0:02:20]} 15. Nd2 {[%emt 0:02:41]} Nf6 {[%emt 0:00:25]} 16. b5 {[%emt 0:00:45][%cal Rb5c6]} Rc8 {[%emt 0:00:33]} 17. Ba3 {[%emt 0:04:41]} (17. Qb1 $16) 17... Qd7 {[%emt 0:00:56] Black is on the road to losing.} (17... cxb5 $1 $11 18. Qxc8 Qxc8 19. Rxc8 Rxc8) 18. Qc5 {[%emt 0:02:40][%csl LRa7,LRe7]} Rfe8 {[%emt 0:09:09]} 19. a5 {[%emt 0:04:03]} Qc7 {[%emt 0:03:37]} 20. bxc6 {[%emt 0:02:38]} bxc6 {[%emt 0:02:04]} 21. a6 {[%emt 0:02:31]} Rb8 {[%emt 0:01:22]} 22. Rb1 {[%emt 0:00:53]} Bf8 {[%emt 0:00:15]} 23. Qc3 {[%emt 0:00:54]} Qd7 {[%emt 0:02:25]} (23... Kg7 $16 {is a better defense.} 24. Nc4 Nd7) 24. Nc4 $18 {[%emt 0:00:52]} Qe6 {[%emt 0:00:54]} (24... Qc8 $142 25. Rxb8 Qxb8) 25. Ne5 {[%emt 0:00:18]} Kg7 {[%emt 0:01:38]} 26. Bc5 {[%emt 0:00:08][%cal Ba3c5,Bc5a7,Ba7c5][%mdl 32]} Ra8 {[%emt 0:02:03]} (26... Qc8 $142 27. Bxa7 Ra8) 27. Rb7 {[%emt 0:00:12]} h5 {[%emt 0:00:23]} 28. Rxa7 {[%emt 0:01:48]} Rxa7 {[%emt 0:00:31]} 29. Bxa7 {[%emt 0:00:02]} Nd7 {[%emt 0:00:23]} 30. Nxd7 {[%emt 0:00:24]} Qxd7 {[%emt 0:00:05]} 31. Bc5 {[%emt 0:00:17]} e6 {[%emt 0:00:06]} 32. Rb1 {[%emt 0:00:25]} Kh6 {[%emt 0:00:24]} 33. Rb7 {[%emt 0:00:48]} Qc8 {[%emt 0:01:02]} 34. Qb4 {[%emt 0:02:21] [#] Threatening mate with Bxf8+.} Bxc5 {[%emt 0:00:52]} 35. Qxc5 {[%emt 0:00:02] Threatens to win with Qd6.} e5 {[%emt 0:00:16]} 36. dxe5 {[%emt 0:01:37]} Rxe5 {[%emt 0:01:09]} 37. Qd6 {[%emt 0:00:50]} Re6 {[%emt 0:00:42]} 38. Qf4+ {[%emt 0:01:23] White mates.} g5 {[%emt 0:00:05]} 39. Qf7 {[%emt 0:00:05][%csl Ge2][%cal Rf7h5]} Qh8 {[%emt 0:00:07]} 40. a7 {[%emt 0:01:00][%csl Ge2][%cal Rf7h5]} Rg6 {[%emt 0:00:34]} 41. a8=Q {[%emt 0:01:37] Weighted Error Value: White=0.17 (very precise) /Black=0.62} 1-0

[Event "FRA-ch Teams Top 16-Bas 2022"]
[Site "Chartres"]
[Date "2022.06.18"]
[Round "10.15"]
[White "Caille, Hugo"]
[Black "Housieaux, David"]
[Result "1/2-1/2"]
[ECO "E62"]
[WhiteElo "2177"]
[BlackElo "2412"]
[Annotator "TA"]
[PlyCount "86"]
[EventDate "2022.06.16"]
[EventType "team-tourn"]
[EventCountry "FRA"]
[SourceTitle "playchess.com"]
[Source "ChessBase"]
[SourceQuality "1"]
[TimeControl "40/5400+30:1800+30"]

{[%evp 16,86,36,38,48,40,56,45,56,50,43,59,79,87,75,56,72,53,68,64,79,78,143,97,139,135,162,166,184,184,182,171,277,277,295,266,273,265,287,299,293,287,282,102,238,238,278,39,39,45,56,44,150,16,12,0,0,-1,0,0,0,0,0,0,0,0,0,0,0,0,0,0,0]} 1. Nf3 {[%emt 0:00:18]} Nf6 {[%emt 0:00:58]} 2. g3 {[%emt 0:00:25]} g6 {[%emt 0:00:51]} 3. Bg2 {[%emt 0:00:30]} Bg7 {[%emt 0:00:08]} 4. O-O {[%emt 0:00:17]} O-O {[%emt 0:00:07]} 5. d4 {[%emt 0:00:20]} d6 {[%emt 0:01:42]} 6. c4 {[%emt 0:00:37]} Nc6 {[%emt 0:02:41]} 7. Nc3 {[%emt 0:00:35]} e5 {[%emt 0:01:04]} 8. dxe5 {[%emt 0:04:53]} dxe5 $1 {[%emt 0:01:47] 8...dxe5 scores better than 8...Nxe5.} 9. Bg5 {[%emt 0:05:39]} Qe8 {[%emt 0:10:28] E62: King's Indian: Fianchetto: 6...c6 and Panno Variation (6...Nc6) without ...a6.} 10. Nd5 {[%emt 0:07:49]} Nxd5 {[%emt 0:01:03]} 11. cxd5 {[%emt 0:04:15] [#]} Nb4 $146 {[%emt 0:00:43] White is slightly better.} ({Predecessor:} 11... Nd4 12. Rc1 h6 13. Be3 Nxf3+ 14. Bxf3 e4 15. Bg2 Qd8 16. Bxe4 Bxb2 17. Rc2 Bg7 {1-0 (44) Gabrielian,A (2464)-Hamley,R (2039) Chess.com INT 2021}) 12. Qd2 {[%emt 0:09:20]} Na6 {[%emt 0:04:26]} 13. Bh6 {[%emt 0:03:30]} Qe7 {[%emt 0:06:27]} 14. Bxg7 {[%emt 0:01:37] White is more active.} Kxg7 {[%emt 0:00:02]} 15. Qc3 {[%emt 0:03:24]} Re8 {[%emt 0:04:47]} 16. a3 {[%emt 0:04:10]} Bg4 {[%emt 0:14:15]} 17. b4 {[%emt 0:01:33]} Rad8 {[%emt 0:05:26]} 18. Rac1 {[%emt 0:04:06]} b6 {[%emt 0:07:00]} (18... Nb8 $142) 19. h3 {[%emt 0:05:00]} (19. Nd2 $142) 19... Bc8 {[%emt 0:03:04]} 20. Rfd1 {[%emt 0:00:33]} Bb7 {[%emt 0:06:52]} 21. e4 {[%emt 0:02:45]} Qd6 {[%emt 0:02:37]} 22. Bf1 {[%emt 0:00:52]} Re7 {[%emt 0:00:05]} 23. Nd2 {[%emt 0:01:43]} Nb8 {[%emt 0:08:53]} (23... Qf6 {was called for.} 24. h4 h5) 24. Nc4 $18 {[%emt 0:01:09]} Qf6 {[%emt 0:00:04]} 25. f4 {[%emt 0:11:18][%cal Rf4e5]} Nd7 {[%emt 0:05:24]} 26. d6 {[%emt 0:05:52]} cxd6 {[%emt 0:00:29]} 27. Rxd6 {[%emt 0:00:07]} (27. Nxd6 Ba8 $16) 27... Re6 {[%emt 0:01:10]} 28. fxe5 {[%emt 0:01:00]} Qe7 {[%emt 0:07:25]} 29. Rcd1 $2 {[%emt 0:03:35]} (29. Rxe6 $1 $18 {and the rest is easy.} Qxe6 30. Rd1 (30. Nd6 Ba8 $16)) 29... Bc6 {[%emt 0:01:12]} (29... Bxe4 $16 {was worth a try.} 30. h4 Bc6) 30. Ne3 {[%emt 0:07:33]} Rc8 {[%emt 0:02:09]} 31. Nd5 $2 {[%emt 0:04:11]} ({White should play} 31. Ba6 $18 Bb7 32. Qb2 $1) 31... Qg5 $14 {[%emt 0:00:55][%cal Oc6d5] Strongly threatening ...Bxd5!} 32. Nf4 {[%emt 0:00:15]} Rxd6 {[%emt 0:01:02]} 33. exd6+ {[%emt 0:00:06]} ({Of course not} 33. Rxd6 Qxe5 34. Qd4 Qxd4+ 35. Rxd4 Ne5 $17) 33... Qe5 {[%emt 0:00:46] [#]} (33... Ne5 $1 $14 34. Qe3 (34. Ba6 Bb7 $17) 34... Rd8) 34. Qxe5+ {[%emt 0:01:12]} ({White has to play} 34. Rc1 $1 $16) 34... Nxe5 $11 {[%emt 0:00:00] The position is equal.} 35. Rc1 {[%emt 0:02:47] Hoping for Nd3.} Rd8 {[%emt 0:00:17]} 36. Nd3 $132 {[%emt 0:00:04][%mdl 2048] White is not holding back} Nxd3 {[%emt 0:00:24]} 37. Rxc6 {[%emt 0:00:05][%mdl 4096] Endgame KRB-KRN} Ne5 {[%emt 0:00:09][%cal Bd3e5,Be5f3,Bf3h2][%mdl 32]} 38. Rc7 {[%emt 0:00:06]} Rxd6 {[%emt 0:00:30]} 39. Rxa7 {[%emt 0:00:25]} Rd2 $1 {[%emt 0:01:42] Against Be2. ( -> ...Nf3+)} 40. Bb5 {[%emt 0:01:47]} Nf3+ {[%emt 0:00:25]} 41. Kf1 {[%emt 0:30:23]} Nh2+ {[%emt 0:30:46]} 42. Ke1 {[%emt 0:00:48]} Nf3+ {[%emt 0:00:24]} 43. Kf1 {[%emt 0:00:05]} Nh2+ {[%emt 0:00:39] White really could win this.  Weighted Error Value: White=0.31/Black=0.22 (precise)} 1/2-1/2

[Event "FRA-ch Teams Top 16-Bas 2022"]
[Site "Chartres"]
[Date "2022.06.18"]
[Round "10.16"]
[White "Monpeurt, Cyrielle"]
[Black "Afraoui, Solenn"]
[Result "1-0"]
[ECO "B52"]
[WhiteElo "2172"]
[BlackElo "1945"]
[Annotator "TA"]
[PlyCount "83"]
[EventDate "2022.06.16"]
[EventType "team-tourn"]
[EventCountry "FRA"]
[SourceTitle "playchess.com"]
[Source "ChessBase"]
[SourceQuality "1"]
[TimeControl "40/5400+30:1800+30"]

{[%evp 23,83,41,30,27,37,31,34,24,47,18,36,22,30,14,56,20,23,28,14,20,83,61,110,104,134,91,118,78,80,80,113,96,155,142,145,131,191,209,194,196,187,187,187,179,347,347,347,347,324,323,460,318,889,848,1101,1051,1065,1052,1262,1154,3076,2181]} 1. e4 {[%emt 0:00:05]} c5 {[%emt 0:00:09]} 2. Nf3 {[%emt 0:00:12]} d6 {[%emt 0:00:18]} 3. Bb5+ {[%emt 0:00:10]} Bd7 {[%emt 0:01:04]} 4. Bxd7+ {[%emt 0:00:07]} Qxd7 {[%emt 0:00:09]} 5. c4 {[%emt 0:00:31]} Nc6 {[%emt 0:03:50]} 6. Nc3 {[%emt 0:00:32]} g6 {[%emt 0:00:50]} 7. d4 {[%emt 0:00:27]} cxd4 {[%emt 0:00:38]} 8. Nxd4 {[%emt 0:00:08]} Bg7 {[%emt 0:00:26]} 9. Be3 {[%emt 0:00:14]} Nf6 {[%emt 0:01:55]} 10. f3 {[%emt 0:01:21]} Rc8 {[%emt 0:02:29]} 11. b3 {[%emt 0:01:50]} a6 {[%emt 0:02:58]} 12. O-O {[%emt 0:01:39]} O-O {[%emt 0:03:25][%cal Ob7b5]} 13. Qd3 $1 {[%emt 0:03:11][%mdl 4] is now more promising than 13.a4. B52: Sicilian: Moscow Variation with 3...Bd7.} (13. Nxc6 {feels hotter.} Rxc6 14. a4 Ng4 15. Bd4) 13... e6 {[%emt 0:14:13]} 14. Nxc6 {[%emt 0:14:27]} Rxc6 {[%emt 0:06:48] [#]} 15. Rad1 $146 {[%emt 0:05:29][%cal Oe4e5] White is slightly better.} ({Predecessor:} 15. a4 Qe7 16. a5 Nd7 17. Qd2 Rfc8 18. Bd4 Nc5 19. Rfb1 Bxd4+ 20. Qxd4 Qg5 21. Ne2 {0-1 (41) Eljanov,P (2672)-Sapunov,E (2461) Chess.com INT 2020}) 15... Qc7 {[%emt 0:14:37][%cal Ob7b5]} 16. a4 {[%emt 0:01:11] Inhibits b5.} Nd7 {[%emt 0:09:48]} 17. Ne2 {[%emt 0:17:56]} Nc5 {[%emt 0:03:22]} 18. Qc2 {[%emt 0:09:58]} a5 {[%emt 0:08:51]} 19. Bd4 {[%emt 0:03:55]} Qb6 {[%emt 0:05:49]} 20. Bxg7 {[%emt 0:03:32]} Kxg7 {[%emt 0:02:49]} 21. Nd4 {[%emt 0:00:03]} Na6 {[%emt 0:05:49]} (21... Rcc8 $11) 22. Kh1 {[%emt 0:03:10] Threatens to win with Qc3.} Rc5 {[%emt 0:01:16]} (22... Rcc8 $14 {is more appropriate.}) 23. Nb5 $40 {[%emt 0:00:34][%cal Bd4b5,Bb5c3,Bc3e2,Be2f4][%mdl 160] White wants a kill.} Rd8 {[%emt 0:02:39]} 24. Qb2+ {[%emt 0:01:21]} f6 {[%emt 0:01:10]} 25. Rd2 {[%emt 0:02:58]} Nc7 {[%emt 0:04:24][%cal Rc7b5]} 26. Nc3 {[%emt 0:04:59] White is more active.} Rh5 {[%emt 0:01:57]} 27. Rfd1 {[%emt 0:00:25]} Qc5 {[%emt 0:00:40]} (27... Rd7 $142) 28. Ne2 {[%emt 0:02:06]} b6 {[%emt 0:01:26]} 29. Qd4 {[%emt 0:01:57]} Qxd4 {[%emt 0:00:19]} (29... Qc6 $16 30. Nc3 Rc5) 30. Rxd4 $18 {[%emt 0:00:10]} Ne8 {[%emt 0:00:14]} 31. Nf4 $1 {[%emt 0:05:10][%csl LRe6,LRh5]} Re5 {[%emt 0:00:14] [#]} 32. g4 $1 {[%emt 0:00:10]} Kf7 {[%emt 0:01:15] [#]} 33. Nd3 {[%emt 0:00:07] Prevents Rc5.} Ke7 $2 {[%emt 0:00:35]} (33... Rc5 {keeps fighting.}) 34. f4 {[%emt 0:02:18][%cal Bf3f4,Bf4f5][%mdl 32]} ({Not} 34. Nxe5 fxe5 35. R4d2 Kd7 $18) 34... Rc5 {[%emt 0:00:05]} 35. Nxc5 {[%emt 0:00:05]} bxc5 {[%emt 0:00:02][%mdl 4096] Endgame KRR-KRN} 36. R4d3 {[%emt 0:00:06] Rh3 is the strong threat.} e5 {[%emt 0:01:06]} (36... Rd7 {is a better defense.} 37. Kg2 Rb7) 37. f5 {[%emt 0:01:46] Black must now prevent Rh3.} g5 $2 {[%emt 0:00:43]} (37... Kf7 38. Kg1 Rb8) 38. Rh3 {[%emt 0:00:15] White is clearly winning.} Rb8 {[%emt 0:00:36]} 39. Rxh7+ {[%emt 0:00:06]} Kd8 {[%emt 0:00:07]} 40. Rd3 {[%emt 0:00:37]} Rb6 {[%emt 0:00:27]} 41. Ra7 {[%emt 0:33:07] Threatening mate with Rh3.} Nc7 {[%emt 0:01:06]} 42. Rh3 {[%emt 0:00:00] Weighted Error Value: White=0.14 (very precise) /Black=0.34} 1-0

[Event "FRA-ch Teams Top 16-Bas 2022"]
[Site "Chartres"]
[Date "2022.06.18"]
[Round "10.17"]
[White "Feller, Sebastien"]
[Black "Kirk, Ezra"]
[Result "1/2-1/2"]
[ECO "B35"]
[WhiteElo "2569"]
[BlackElo "2446"]
[Annotator "TA"]
[PlyCount "138"]
[EventDate "2022.06.16"]
[EventType "team-tourn"]
[EventCountry "FRA"]
[SourceTitle "playchess.com"]
[Source "ChessBase"]
[SourceQuality "1"]
[TimeControl "40/5400+30:1800+30"]

{[%evp 17,138,22,29,0,21,19,12,12,19,14,18,10,19,0,0,0,17,16,8,8,8,11,64,43,51,13,28,26,39,19,55,50,61,61,61,54,54,54,54,51,78,78,69,70,81,68,81,81,84,41,50,41,41,49,47,8,8,8,8,8,8,0,0,0,0,0,0,0,0,0,0,0,0,0,0,0,0,0,0,-7,-6,-6,0,0,0,0,0,0,0,-8,0,0,0,0,0,0,0,-21,-21,-21,-21,-21,-21,-8,-8,-21,-21,-21,-21,-21,-21,-21,-21,-21,-21,-21,-21,-21,-21,-21,-21,-21,0]} 1. e4 {[%emt 0:00:01]} c5 {[%emt 0:00:26]} 2. Nc3 {[%emt 0:02:17]} Nc6 {[%emt 0:00:34]} 3. Nge2 {[%emt 0:01:22]} g6 {[%emt 0:03:56]} 4. d4 {[%emt 0:02:14]} cxd4 {[%emt 0:00:05]} 5. Nxd4 {[%emt 0:00:42]} Bg7 {[%emt 0:00:08]} 6. Be3 {[%emt 0:03:50]} Nf6 {[%emt 0:01:30]} 7. Bc4 {[%emt 0:02:02]} Qa5 {[%emt 0:01:50]} 8. O-O {[%emt 0:02:53]} O-O {[%emt 0:00:27]} 9. Nb3 {[%emt 0:01:43]} Qc7 {[%emt 0:00:16]} 10. f3 {[%emt 0:06:26] B35: Sicilian: Accelerated Dragon with 5 Nc3: main line.} a6 {[%emt 0:01:57]} 11. a4 {[%emt 0:12:15] [#]} d6 $146 {[%emt 0:13:15]} ({Predecessor:} 11... b6 12. Ne2 d6 13. Ng3 Nd7 14. c3 Nce5 15. Be2 Nc4 16. Bxc4 Qxc4 17. Kh1 Rb8 {½-½ (17) Pham,H-Mai,N Vung Tau 2004}) 12. a5 {[%emt 0:06:28]} Ne5 {[%emt 0:05:20]} 13. Be2 {[%emt 0:05:51]} Be6 {[%emt 0:12:02]} 14. Bb6 {[%emt 0:05:49]} Qc8 {[%emt 0:01:40]} 15. Bd4 {[%emt 0:00:06][%cal Oc3d5]} Nc6 {[%emt 0:07:37]} 16. Be3 {[%emt 0:02:19]} Nd7 {[%emt 0:03:28]} 17. Nd4 {[%emt 0:05:59]} Nxd4 {[%emt 0:01:40]} 18. Bxd4 {[%emt 0:00:02]} Bxd4+ {[%emt 0:00:58]} 19. Qxd4 {[%emt 0:00:08]} Qc5 {[%emt 0:00:39]} ({Black should try} 19... Qc7 $11) 20. Qxc5 $14 {[%emt 0:00:07]} Nxc5 {[%emt 0:01:18]} 21. Na4 {[%emt 0:03:11]} Nxa4 {[%emt 0:02:23]} 22. Rxa4 {[%emt 0:01:18]} Rfc8 {[%emt 0:00:24]} 23. Bd3 {[%emt 0:00:02]} Bd7 {[%emt 0:25:06]} 24. Rb4 {[%emt 0:03:54]} Bb5 {[%emt 0:00:06]} 25. c4 {[%emt 0:00:08]} Bc6 {[%emt 0:00:02]} 26. Rb6 {[%emt 0:05:07]} Rc7 {[%emt 0:00:07]} 27. Kf2 {[%emt 0:01:42]} Bd7 {[%emt 0:04:14]} 28. Ke3 {[%emt 0:02:51]} Kf8 {[%emt 0:01:47]} 29. f4 {[%emt 0:02:08] White is more active.} Rb8 {[%emt 0:01:11]} 30. b4 {[%emt 0:07:21]} Rc6 {[%emt 0:04:37]} 31. Rxc6 {[%emt 0:00:20]} bxc6 $16 {[%emt 0:01:09][%mdl 4096] Endgame [#] KRB-KRB} 32. Rb1 {[%emt 0:00:24]} f6 {[%emt 0:01:01]} 33. Kd4 {[%emt 0:11:00]} e5+ {[%emt 0:00:32]} 34. fxe5 {[%emt 0:00:05]} fxe5+ {[%emt 0:00:03]} 35. Kc3 {[%emt 0:00:09]} Ke7 {[%emt 0:03:23]} 36. b5 {[%emt 0:01:57]} cxb5 {[%emt 0:00:13] The position is equal.} 37. cxb5 {[%emt 0:00:06]} Bxb5 {[%emt 0:00:36]} 38. Bxb5 {[%emt 0:00:09]} axb5 $11 {[%emt 0:00:03] KR-KR} 39. Kb4 {[%emt 0:00:05]} d5 $1 {[%emt 0:00:10]} 40. exd5 {[%emt 0:04:38]} Kd6 {[%emt 0:00:07]} 41. Rd1 {[%emt 0:04:05]} e4 {[%emt 0:09:33]} 42. a6 {[%emt 0:03:33]} e3 {[%emt 0:01:04]} 43. Re1 {[%emt 0:18:03]} Re8 {[%emt 0:05:09]} 44. a7 {[%emt 0:00:02][%cal Oe1e3] [#] Threatens to win with Rxe3!} Ra8 {[%emt 0:00:17]} 45. Rxe3 {[%emt 0:00:06]} Rxa7 {[%emt 0:00:10]} 46. Kxb5 {[%emt 0:00:34]} Kxd5 {[%emt 0:00:26]} 47. Rd3+ {[%emt 0:01:29]} Ke4 {[%emt 0:00:21]} 48. Rg3 {[%emt 0:00:02]} Rc7 {[%emt 0:03:27]} 49. Rh3 {[%emt 0:05:53]} h5 {[%emt 0:02:24]} 50. Rg3 {[%emt 0:00:01]} Kf5 {[%emt 0:00:31]} 51. h4 {[%emt 0:00:02]} Rc1 {[%emt 0:03:16]} 52. Rg5+ {[%emt 0:00:19]} Kf6 {[%emt 0:00:06]} 53. g4 {[%emt 0:00:20]} hxg4 {[%emt 0:00:57]} 54. Rxg4 {[%emt 0:00:07]} Rc8 {[%emt 0:00:14]} 55. Kb4 {[%emt 0:03:06]} Rc7 {[%emt 0:01:37]} 56. Kb3 {[%emt 0:00:06]} Rc1 {[%emt 0:01:35]} 57. Kb2 {[%emt 0:00:32]} Rc5 {[%emt 0:01:28]} 58. Kb3 {[%emt 0:00:10]} Kg7 {[%emt 0:00:58]} 59. Kb4 {[%emt 0:00:10]} Rf5 {[%emt 0:00:54]} 60. Kc3 {[%emt 0:00:05]} Kh6 {[%emt 0:00:09]} 61. Kd3 {[%emt 0:00:19]} Kh5 {[%emt 0:00:37]} 62. Ra4 {[%emt 0:00:07]} Rf3+ {[%emt 0:01:19]} 63. Ke2 {[%emt 0:00:31]} Rh3 {[%emt 0:00:09]} 64. Kf2 {[%emt 0:00:02]} Rxh4 {[%emt 0:00:16]} 65. Ra5+ {[%emt 0:00:04]} g5 {[%emt 0:00:29]} 66. Kg3 $1 {[%emt 0:00:02]} Rg4+ {[%emt 0:00:34]} 67. Kh3 {[%emt 0:00:09]} Rb4 {[%emt 0:00:29]} 68. Ra3 {[%emt 0:00:01]} Rc4 {[%emt 0:01:05]} 69. Kg3 {[%emt 0:00:01]} Rb4 {[%emt 0:00:15] Weighted Error Value: White=0.05 (flawless) /Black=0.05 (flawless)} 1/2-1/2

[Event "FRA-ch Teams Top 16-Bas 2022"]
[Site "Chartres"]
[Date "2022.06.18"]
[Round "10.18"]
[White "Le Hetet, Nicolas"]
[Black "Ganguly, Surya Shekhar"]
[Result "0-1"]
[ECO "B91"]
[WhiteElo "2372"]
[BlackElo "2616"]
[Annotator "TA"]
[PlyCount "52"]
[EventDate "2022.06.16"]
[EventType "team-tourn"]
[EventCountry "FRA"]
[SourceTitle "playchess.com"]
[Source "ChessBase"]
[SourceQuality "1"]
[TimeControl "40/5400+30:1800+30"]

{[%evp 14,52,7,11,35,23,40,0,0,0,0,0,0,-27,0,0,18,0,17,14,9,20,8,25,22,0,0,-77,-78,-108,-108,-102,-122,-113,-110,-99,-102,-107,-69,-510,-489]} 1. e4 {[%emt 0:00:06]} c5 {[%emt 0:00:19]} 2. Nf3 {[%emt 0:00:06]} d6 {[%emt 0:00:04]} 3. d4 {[%emt 0:00:22]} cxd4 {[%emt 0:00:06]} 4. Nxd4 {[%emt 0:00:04]} Nf6 {[%emt 0:00:06]} 5. Nc3 {[%emt 0:00:05]} a6 {[%emt 0:00:04]} 6. g3 {[%emt 0:01:16]} e5 {[%emt 0:00:15]} 7. Nde2 {[%emt 0:00:06]} Be7 {[%emt 0:00:12]} 8. Bg2 {[%emt 0:00:15]} h5 {[%emt 0:00:26] B91: Sicilian Najdorf: 6 g3.} 9. h3 {[%emt 0:00:36]} b5 {[%emt 0:00:43]} 10. O-O {[%emt 0:01:44]} Nbd7 {[%emt 0:00:22][%cal Bb8d7,Bd7b6,Bb6a4,Ba4c3][%mdl 32] The position is equal.} 11. Bg5 {[%emt 0:07:10]} Bb7 {[%emt 0:00:07]} 12. a3 {[%emt 0:00:42]} Rc8 {[%emt 0:02:02]} 13. Re1 {[%emt 0:07:14]} O-O {[%emt 0:05:11]} (13... Nc5 $5 {[%cal Rf6e4]}) 14. Nc1 {[%emt 0:05:29] [#]} g6 $146 {[%emt 0:23:26]} (14... Nb6 $5 {[%cal Rb6c4]}) ({Predecessor:} 14... Rc4 15. Nd3 g6 16. Qd2 Nc5 17. Bxf6 Bxf6 18. Nb4 Ne6 19. Rad1 Nd4 20. Qd3 Kg7 21. Ncd5 a5 22. c3 axb4 23. cxd4 Bxd5 24. dxe5 Bxe5 25. Qxd5 Rc5 26. Qb3 {½-½ (26) Mrdja,M (2241)-Zotova,A (2006) Novi Sad 2022}) 15. Nd3 {[%emt 0:07:09]} Nb6 {[%emt 0:02:24]} 16. a4 {[%emt 0:13:03]} Rxc3 {[%emt 0:05:38]} 17. bxc3 {[%emt 0:03:58] And now axb5 would win.} Nxa4 {[%emt 0:00:14]} 18. Bxf6 {[%emt 0:02:26]} Bxf6 {[%emt 0:00:07][%cal Be7f6,Bf6g5,Bg5d2][%mdl 32]} 19. c4 $1 {[%emt 0:00:11]} Bg5 {[%emt 0:09:24]} 20. Qb1 {[%emt 0:08:28]} (20. cxb5 $11 {remains equal.} Nc3 21. Qf3 Nxb5 22. Rf1) 20... Nc3 $17 {[%emt 0:01:58]} 21. Qb2 {[%emt 0:03:13]} Bd2 {[%emt 0:00:28]} 22. cxb5 {[%emt 0:03:21]} axb5 {[%emt 0:02:09][%cal Ba6b5,Bb5c4,Bc4c3][%mdl 32]} ({Much worse is} 22... Bxe1 $6 23. Nxe1 Qc8 24. bxa6 Bxa6 25. Qb6 $11) 23. Red1 {[%emt 0:02:05]} Nxd1 {[%emt 0:04:45] Black is more active.} 24. Rxd1 {[%emt 0:05:39]} Qa5 {[%emt 0:00:29]} 25. c4 {[%emt 0:02:22]} bxc4 {[%emt 0:00:24][%cal Oc4c3]} 26. Rxd2 $4 {[%emt 0:04:06][%mdl 8192] [#]} (26. Qxb7 $15 cxd3 27. Bf1) 26... c3 {[%emt 0:02:00] Weighted Error Value: White=0.49/Black=0.09 (flawless)} ({Inferior is} 26... cxd3 27. Rxd3 Bxe4 28. Rxd6 $17) 0-1